{"text_format":"3","workbook":"xlsx","n_sheets":1,"sheets":["Budget pour un mariage"],"not_rendered":{"images":1},"read":"whole","date_system":"1900"}

{"sheet":"Budget pour un mariage","index":0,"n_rows":109,"n_cols":5,"rows_kept":109,"merged":[[2,1,3,1],[5,1,6,1],[14,1,15,1],[24,1,25,1],[33,1,34,1],[43,1,44,1],[50,1,51,1],[60,1,61,1],[73,1,74,1],[87,1,88,1],[95,1,96,1]]}
[{"$nulls":4}," "]
[]
[null,"Total des dépenses ","Estimé","Réel"]
[null,null,{"$f":"C7+C16+C26+C35+C45+C52+C62+C75+C89+C97","v":{"v":350,"d":"350 €"}},{"$f":"D7+D16+D26+D35+D45+D52+D62+D75+D89+D97","v":{"v":320,"d":"320 €"}}]
[]
[null,"Vêtements et accessoires","Estimé","Réel"]
[null,null,{"$f":"SUM(Table_Apparel[[#All],[Estimé]])","v":{"v":350,"d":"350 €"}},{"$f":"SUM(Table_Apparel[[#All],[Réel]])","v":{"v":320,"d":"320 €"}}]
[null,"Colonne1","Estimé","Réel"]
[null,"Alliances",{"v":350,"d":"350.00 €"},{"v":320,"d":"320.00 €"}]
[null,"Tenue de mariage"]
[null,"Accessoires"]
[null,"Chaussures"]
[null,"Autre : entrez les détails"]
[]
[null,"Décorations","Estimé","Réel"]
[null,null,{"$f":"SUM(Table_Decorations[[#All],[Estimé]])","v":{"v":0,"d":"0 €"}},{"$f":"SUM(Table_Decorations[[#All],[Réel]])","v":{"v":0,"d":"0 €"}}]
[null,"Colonne1","Estimé","Réel"]
[null,"Rubans pour les bancs d’église et les sièges"]
[null,"Décorations de table (sauf fleurs)"]
[null,"Bougies"]
[null,"Éclairage"]
[null,"Ballons"]
[null,"Autre : entrez les détails"]
[]
[null,"Cadeaux","Estimé","Réel"]
[null,null,{"$f":"SUM(Table_Gifts[[#All],[Estimé]])","v":{"v":0,"d":"0 €"}},{"$f":"SUM(Table_Gifts[[#All],[Réel]])","v":{"v":0,"d":"0 €"}}]
[null,"Colonne1","Estimé","Réel"]
[null,"Garçons et demoiselles d’honneur"]
[null,"Mariés"]
[null,"Parents"]
[null,"Lecteurs/autres participants"]
[null,"Autre : entrez les détails"]
[]
[null,"Fleurs","Estimé","Réel"]
[null,null,{"$f":"SUM(Table_Flowers[[#All],[Estimé]])","v":{"v":0,"d":"0 €"}},{"$f":"SUM(Table_Flowers[[#All],[Réel]])","v":{"v":0,"d":"0 €"}}]
[null,"Colonne1","Estimé","Réel"]
[null,"Bouquets"]
[null,"Boutonnières"]
[null,"Petits bouquets à épingler au corsage"]
[null,"Cérémonie"]
[null,"Réception"]
[null,"Autre : entrez les détails"]
[]
[null,"Musique","Estimé","Réel"]
[null,null,{"$f":"SUM(Table_Music[[#All],[Estimé]])","v":{"v":0,"d":"0 €"}},{"$f":"SUM(Table_Music[[#All],[Réel]])","v":{"v":0,"d":"0 €"}}]
[null,"Colonne1","Estimé","Réel"]
[null,"Musiciens pour la cérémonie"]
[null,"Orchestre/DJ pour la réception"]
[null,"Autre : entrez les détails"]
[]
[null,"Photographie","Estimé","Réel"]
[null,null,{"$f":"SUM(Table_Photography[[#All],[Estimé]])","v":{"v":0,"d":"0 €"}},{"$f":"SUM(Table_Photography[[#All],[Réel]])","v":{"v":0,"d":"0 €"}}]
[null,"Colonne1","Estimé","Réel"]
[null,"Posées"]
[null,"Sur le vif"]
[null,"Impressions supplémentaires"]
[null,"Albums photo"]
[null,"Vidéo"]
[null,"Autre : entrez les détails"]
[]
[null,"Réception (sauf musique et décorations)","Estimé","Réel"]
[null,null,{"$f":"SUM(Table_Reception[[#All],[Estimé]])","v":{"v":0,"d":"0 €"}},{"$f":"SUM(Table_Reception[[#All],[Réel]])","v":{"v":0,"d":"0 €"}}]
[null,"Colonne1","Estimé","Réel"]
[null,"Location de salle"]
[null,"Tables et chaises"]
[null,"Nourriture"]
[null,"Boissons"]
[null,"Linge de table"]
[null,"Gâteau"]
[null,"Cadeaux pour les invités"]
[null,"Personnel et pourboires"]
[null,"Autre : entrez les détails"]
[]
[null,"Papeterie/impression","Estimé","Réel"]
[null,null,{"$f":"SUM(Table_StationeryPrinting[[#All],[Estimé]])","v":{"v":0,"d":"0 €"}},{"$f":"SUM(Table_StationeryPrinting[[#All],[Réel]])","v":{"v":0,"d":"0 €"}}]
[null,"Colonne1","Estimé","Réel"]
[null,"Invitations"]
[null,"Annonces"]
[null,"Cartes de remerciement"]
[null,"Papeterie à en-tête"]
[null,"Livre d’or"]
[null,"Programmes"]
[null,"Serviettes pour la réception"]
[null,"Pochettes d’allumettes"]
[null,"Calligraphie"]
[null,"Autre : entrez les détails"]
[]
[null,"Transport","Estimé","Réel"]
[null,null,{"$f":"SUM(Table_Transportation[[#All],[Estimé]])","v":{"v":0,"d":"0 €"}},{"$f":"SUM(Table_Transportation[[#All],[Réel]])","v":{"v":0,"d":"0 €"}}]
[null,"Colonne1","Estimé","Réel"]
[null,"Limousines/chariots"]
[null,"Parking"]
[null,"Taxis"]
[null,"Autre : entrez les détails"]
[]
[null,"Autres frais","Estimé","Réel"]
[null,null,{"$f":"SUM(Table_OtherExpenses[[#All],[Estimé]])","v":{"v":0,"d":"0 €"}},{"$f":"SUM(Table_OtherExpenses[Réalité])","v":{"v":0,"d":"0 €"}}]
[null,"Colonne1","Estimé","Réalité"]
[null,"Célébrant"]
[null,"Frais église/lieu de la cérémonie"]
[null,"Coordinateur du mariage"]
[null,"Dîner de répétition"]
[null,"Fête de fiançailles"]
[null,"Fêtes"]
[null,"Soins de mise en beauté"]
[null,"Enterrements de vie de garçon/jeune fille"]
[null,"Brunch"]
[null,"Chambres d’hôtel"]
[null,"Autre : entrez les détails"]